bitfinex-derivatives/quotes_BTCF0:USTF0_20251217
["timestamp","ask_amount","ask_price","bid_price","bid_amount"]
[1765981871312,0.9432134,87875.0,87855.0,0.18755]
[1765981871313,0.0113859,87856.0,87855.0,0.48432]
[1765981871515,0.0113883,87837.0,87836.0,0.77952]
[1765981871716,0.0113883,87837.0,87836.0,1.14032]
[1765981872213,0.41668593,87846.0,87845.0,0.59197]
[1765981872412,0.01155682,87854.0,87853.0,0.59197]
[1765981872617,0.00017072,87854.0,87853.0,0.95277]
[1765981872815,0.6606634,87875.0,87874.0,0.29677]
[1765981873013,0.6606634,87875.0,87850.0,0.17662]
[1765981873014,0.5824152,87861.0,87860.0,0.3608]
[1765981873212,0.0113863,87853.0,87852.0,0.59197]
[1765981873909,0.3721834,87875.0,87874.0,0.59197]
[1765981874107,0.0113834,87875.0,87874.0,0.59197]
[1765981875518,0.0123834,87875.0,87874.0,0.59197]
[1765981875913,0.0133834,87875.0,87874.0,0.59197]
[1765981876221,0.00017072,87883.0,87873.0,0.3608]
[1765981876222,0.0113828,87880.0,87879.0,0.59197]
[1765981876419,0.00017072,87883.0,87882.0,0.59197]
[1765981876619,0.36307538,87898.0,87897.0,0.59197]
[1765981876620,0.01365578,87898.0,87897.0,0.59197]
[1765981876917,0.0113781,87917.0,87916.0,0.59197]
[1765981877522,0.0113792,87907.0,87906.0,0.76859]
[1765981877912,0.0113803,87899.0,87898.0,0.5921406]
[1765981878712,0.0001706,87915.0,87914.0,0.59197]
[1765981879311,0.0115488,87915.0,87914.0,0.59197]
[1765981881616,0.0115488,87915.0,87914.0,0.6033483]
[1765981881617,0.0001706,87915.0,87914.0,0.6033483]
[1765981881819,0.0614709,87943.0,87925.0,0.59197]
[1765981882028,0.30174484,87938.0,87937.0,0.59197]
[1765981882327,0.2998581,87916.0,87915.0,0.29677]
[1765981882826,0.0113792,87907.0,87906.0,0.76859]
[1765981883326,0.0113792,87907.0,87899.0,0.3608]
[1765981883327,0.0113802,87900.0,87899.0,0.95277]
[1765981883520,0.57103,87899.0,87898.0,0.0001706]
[1765981883714,0.0113802,87900.0,87899.0,0.59197]
[1765981884023,0.28848,87899.0,87898.0,0.0001706]
[1765981884524,0.3721802,87900.0,87899.0,0.59197]
[1765981884927,0.0113802,87900.0,87899.0,0.59197]
[1765981885926,0.3608,87919.0,87913.0,0.59197]
[1765981885927,0.0113784,87914.0,87913.0,0.59197]
[1765981886116,0.3608,87925.0,87923.0,0.59197]
[1765981886320,0.01154724,87924.0,87923.0,0.59197]
[1765981886829,0.00017024,87924.0,87923.0,0.59197]
[1765981887127,0.00017024,87924.0,87923.0,0.95277]
[1765981887323,0.00188964,87938.0,87937.0,0.59197]
[1765981887524,0.00188964,87938.0,87937.0,0.95277]
[1765981888221,0.00188964,87938.0,87937.0,0.59197]
[1765981888527,0.01326484,87938.0,87937.0,0.95277]
[1765981889028,0.00188964,87938.0,87937.0,0.95277]
[1765981889437,0.0113724,87960.0,87959.0,0.59197]
[1765981890220,0.5824034,87952.0,87951.0,0.0001706]
[1765981890426,0.0113742,87946.0,87938.0,0.3608]
[1765981890618,0.0113761,87931.0,87930.0,0.76859]
[1765981890816,0.0113732,87954.0,87930.0,0.76859]
[1765981891016,0.0113742,87946.0,87945.0,0.76859]
[1765981891221,0.0113742,87946.0,87945.0,0.59197]
[1765981891428,0.11654751,87955.0,87954.0,0.59197]
[1765981891429,0.12792051,87955.0,87954.0,0.59197]
[1765981891727,0.011373,87955.0,87954.0,0.59197]
[1765981892024,0.0115426,87963.0,87962.0,0.59197]
[1765981893634,0.0113737,87950.0,87949.0,0.95277]
[1765981894533,0.0113733,87954.0,87949.0,0.3608]
[1765981894726,0.0113733,87954.0,87953.0,0.59152]
[1765981895026,0.0001706,87963.0,87962.0,0.59152]
[1765981895230,0.0001706,87963.0,87962.0,0.75536]
[1765981896528,0.0113702,87978.0,87976.0,0.16384]
[1765981896829,0.0113702,87978.0,87977.0,0.59152]
[1765981897226,0.0113702,87978.0,87977.0,0.95232]
[1765981897640,0.2854602,87978.0,87977.0,0.95232]
[1765981897825,0.0113702,87978.0,87977.0,0.95232]
[1765981898324,0.3608,87992.0,87977.0,0.95232]
[1765981898325,0.0113697,87981.0,87980.0,0.59152]
[1765981898723,0.0113697,87981.0,87980.0,1.31312]
[1765981899336,0.011371,87971.0,87970.0,0.95232]
[1765981899635,0.27409,87970.0,87969.0,0.0001705]
[1765981899830,0.54773,87970.0,87969.0,0.0001705]
[1765981900740,0.011371,87971.0,87970.0,0.59152]
[1765981901127,0.17074371,87979.0,87973.0,0.59152]
[1765981901128,0.0113707,87974.0,87973.0,0.59152]
[1765981901337,0.0113699,87979.0,87978.0,0.59152]
[1765981901531,0.0113699,87979.0,87978.0,0.95232]
[1765981901731,0.285461,87971.0,87970.0,0.95232]
[1765981902038,0.285461,87971.0,87970.0,0.59152]
[1765981902039,0.011371,87971.0,87970.0,0.59152]
[1765981902333,0.0113697,87981.0,87980.0,0.59152]
[1765981906728,0.0113697,87981.0,87976.0,0.3608]
[1765981906729,0.5591002,87977.0,87976.0,0.3608]
[1765981906934,0.2854602,87977.0,87976.0,0.95232]
[1765981907647,0.0113702,87977.0,87976.0,0.95232]
[1765981908740,0.2854608,87972.0,87971.0,0.29668]
[1765981908940,0.54773,87968.0,87967.0,0.3608]
[1765981909139,0.011372,87963.0,87962.0,0.75536]
[1765981909729,0.011372,87963.0,87962.0,1.11616]
[1765981910142,0.00017016,87971.0,87970.0,0.59152]
[1765981910341,0.01154116,87971.0,87970.0,0.95232]
[1765981910754,0.01154116,87971.0,87970.0,0.59152]
[1765981910755,0.28563116,87971.0,87970.0,0.59152]
[1765981910951,0.011372,87963.0,87962.0,0.52464]
[1765981911136,0.011373,87955.0,87954.0,0.5916905]
[1765981911539,0.011373,87955.0,87954.0,0.9524905]
[1765981912246,0.011373,87955.0,87954.0,0.5916905]
[1765981912443,0.0113762,87931.0,87930.0,0.29668]
[1765981912651,0.0113762,87931.0,87930.0,0.59152]
[1765981913947,0.0113762,87931.0,87930.0,0.59552]
[1765981914333,0.5591062,87931.0,87930.0,0.30068]
[1765981914543,0.0113798,87903.0,87902.0,0.3608]
[1765981914738,0.0113772,87923.0,87922.0,0.59152]
[1765981916151,0.2854672,87923.0,87922.0,0.59152]
[1765981916337,0.0113782,87915.0,87914.0,0.5916906]
[1765981916536,0.5591082,87915.0,87914.0,1e-07]
[1765981916851,0.5591103,87899.0,87892.0,0.00014534]
[1765981917749,1.2764703,87899.0,87892.0,0.00014534]
[1765981918247,0.5591111,87893.0,87892.0,0.00014534]
[1765981918446,0.54773,87891.0,87868.0,0.3608]
[1765981918641,0.0113842,87869.0,87868.0,0.95232]
[1765981918840,0.0113842,87869.0,87868.0,0.59152]
[1765981919452,0.01149738,87869.0,87868.0,0.59152]
[1765981919849,0.0113852,87861.0,87860.0,0.65765071]
[1765981920149,0.5591152,87861.0,87860.0,0.00017071]
[1765981920346,0.0113887,87834.0,87833.0,0.59152]
[1765981920655,0.00010042,87834.0,87824.0,0.59152]
[1765981920838,0.0113825,87883.0,87866.0,0.59152]
[1765981921037,0.0113826,87881.0,87880.0,0.59152]
[1765981921242,0.011385,87863.0,87862.0,0.59152]
[1765981921443,0.27409,87861.0,87860.0,0.004]
[1765981921642,0.730716,87855.0,87854.0,0.00011429]
[1765981921844,0.17164492,87855.0,87836.0,0.59152]
[1765981922148,4.492e-05,87855.0,87854.0,0.59152]
[1765981922348,0.0113853,87861.0,87860.0,0.29668]
[1765981922647,0.011385,87863.0,87862.0,0.29668]
[1765981922841,0.0113844,87867.0,87866.0,0.59152]
[1765981923038,0.00017071,87871.0,87854.0,0.002]
[1765981923039,0.01155461,87871.0,87856.0,0.0113858]
[1765981923244,0.01155461,87871.0,87870.0,0.59152]
[1765981923443,0.00017071,87871.0,87870.0,0.59152]
[1765981924552,0.0113812,87892.0,87891.0,0.66478]
[1765981924939,0.0113827,87881.0,87880.0,0.66478]
[1765981925239,0.0113821,87886.0,87885.0,0.66478]
[1765981925439,0.0113813,87892.0,87885.0,0.66478]
[1765981925642,0.0113813,87892.0,87891.0,0.66478]
[1765981926252,0.0113826,87881.0,87880.0,0.34046071]
[1765981926547,0.0113826,87881.0,87880.0,0.66495071]
[1765981926741,0.6730826,87881.0,87880.0,0.00017071]
[1765981926955,0.6730826,87881.0,87845.0,0.0113873]
[1765981926956,0.19028,87887.0,87864.0,0.66478]
[1765981927240,0.0113847,87865.0,87864.0,0.66478]
[1765981927444,0.20808,87855.0,87828.0,0.66478]
[1765981927648,0.20808,87855.0,87810.0,0.05428]
[1765981927649,0.0113887,87835.0,87834.0,0.34029]
[1765981927849,0.0113887,87835.0,87834.0,0.66478]
[1765981928058,0.0113904,87821.0,87820.0,0.66485991]
[1765981928354,0.6730904,87821.0,87820.0,7.991e-05]
[1765981928661,0.20808,87824.0,87786.0,0.71884]
[1765981928952,8.3e-07,87814.0,87813.0,0.6761713]
[1765981929153,0.0113881,87839.0,87826.0,0.0113897]
[1765981929358,0.17074371,87840.0,87804.0,0.34295371]
[1765981929359,0.17074371,87840.0,87835.0,0.34029]
[1765981929557,7.991e-05,87839.0,87838.0,0.66478]
[1765981930245,0.01146801,87839.0,87831.0,0.0113891]
[1765981930445,7.991e-05,87839.0,87838.0,0.66478]
[1765981931049,7.991e-05,87839.0,87838.0,0.66578]
[1765981931255,7.991e-05,87839.0,87838.0,0.001]
[1765981931555,0.66177991,87839.0,87838.0,0.001]
[1765981931859,7.991e-05,87839.0,87838.0,0.001]
[1765981932057,7.991e-05,87839.0,87838.0,0.66578]
[1765981932444,7.991e-05,87839.0,87838.0,0.001]
[1765981932850,0.0113882,87838.0,87837.0,0.34029]
[1765981933045,7.991e-05,87839.0,87838.0,0.66478]
[1765981933250,7.991e-05,87839.0,87838.0,0.6761682]
[1765981933556,8.3e-07,87847.0,87846.0,0.6761672]
[1765981933856,8.3e-07,87847.0,87846.0,0.3608]
[1765981934262,0.0113881,87839.0,87838.0,0.002]
[1765981934472,8.3e-07,87847.0,87840.0,0.19103]
[1765981934759,8.3e-07,87847.0,87846.0,1.02558]
[1765981934760,0.01138783,87847.0,87846.0,1.02558]
[1765981935058,0.01138783,87847.0,87846.0,0.66478]
[1765981935257,8.3e-07,87847.0,87838.0,0.002]
[1765981935462,0.01138793,87847.0,87845.0,0.3608]
[1765981935650,0.011388,87840.0,87839.0,0.66478]
[1765981935847,0.6617,87839.0,87838.0,0.001]
[1765981936051,0.0113891,87831.0,87830.0,0.66495083]
[1765981936452,0.3608,87835.0,87834.0,0.66478]
[1765981936652,8.3e-07,87847.0,87842.0,0.66478]
[1765981936963,8.3e-07,87847.0,87845.0,0.32449]
[1765981937166,0.01138783,87847.0,87846.0,0.66478]
[1765981937453,8.3e-07,87847.0,87846.0,0.66478]
[1765981937660,0.0113843,87869.0,87868.0,0.32449]
[1765981937850,0.0113837,87873.0,87872.0,0.66478]
[1765981938252,0.17074371,87880.0,87872.0,0.66478]
[1765981938550,0.0113801,87901.0,87880.0,0.0113827]
[1765981938551,0.17074371,87890.0,87880.0,0.0113827]
[1765981938754,0.17074371,87890.0,87889.0,0.34029]
[1765981938958,0.3721813,87891.0,87889.0,0.34029]
[1765981939956,0.0113829,87879.0,87878.0,1.02558]
[1765981940160,0.0113829,87879.0,87878.0,0.66478]
[1765981940659,0.3721829,87879.0,87876.0,0.00017071]
[1765981941061,0.67555,87877.0,87876.0,0.00017071]
[1765981941256,0.0113873,87845.0,87844.0,0.3608]
[1765981941458,0.0113883,87837.0,87836.0,0.66165]
[1765981942060,0.17074371,87844.0,87836.0,0.66165]
[1765981942451,0.0113882,87839.0,87838.0,0.33319]
[1765981942653,0.0113877,87843.0,87842.0,0.66165]
[1765981942849,0.686939,87832.0,87831.0,0.00017071]
[1765981943056,0.0113928,87803.0,87802.0,0.66165]
[1765981943352,0.0113928,87803.0,87802.0,0.6730429]
[1765981943353,0.3608,87803.0,87802.0,0.6730429]
[1765981943558,0.54293531,87812.0,87811.0,0.66165]
[1765981943751,0.3721916,87812.0,87811.0,0.66165]
[1765981944271,0.3608,87812.0,87780.0,0.21441137]
[1765981944557,0.3608,87798.0,87797.0,0.66165]
[1765981944759,0.3608,87809.0,87783.0,0.3608]
[1765981944760,0.3608,87809.0,87808.0,0.33319]
[1765981944966,0.0113925,87806.0,87805.0,0.33319]
[1765981945861,0.3608,87809.0,87802.0,0.001]
[1765981945862,0.0113927,87803.0,87802.0,0.001]
[1765981946255,0.3608,87804.0,87803.0,0.66165]
[1765981946564,0.3608,87804.0,87803.0,0.6730427]
[1765981946765,0.00017081,87817.0,87790.0,0.17074371]
[1765981946766,0.3721916,87812.0,87811.0,0.66165]
[1765981946955,0.3721916,87812.0,87803.0,0.66165]
[1765981946956,0.3608,87812.0,87803.0,0.66165]
[1765981947155,0.00017081,87817.0,87816.0,0.66165]
[1765981948866,8.1e-07,87817.0,87816.0,0.66165]
[1765981949169,0.3608,87830.0,87829.0,0.6730394]
[1765981949362,0.3721892,87830.0,87829.0,0.66165]
[1765981949562,0.3608,87830.0,87829.0,0.66165]
[1765981949769,0.3608,87839.0,87814.0,0.3608]
[1765981949770,0.3608,87839.0,87838.0,0.66165]
[1765981950063,0.6869391,87831.0,87830.0,0.00017081]
[1765981950256,1.0477391,87831.0,87830.0,0.00017081]
[1765981950666,0.69899,87831.0,87830.0,0.00017081]
[1765981950862,0.3608,87831.0,87830.0,0.67321001]
[1765981951166,0.3628,87831.0,87830.0,0.66182081]
[1765981951762,0.3628,87831.0,87830.0,0.00017081]
[1765981952164,0.3648,87831.0,87830.0,0.00017081]
[1765981952669,0.3648,87831.0,87830.0,0.66182081]
[1765981953058,0.3761891,87831.0,87830.0,0.66182081]
[1765981953258,0.7143791,87831.0,87830.0,0.00017081]
[1765981953866,0.3648,87831.0,87807.0,0.0113921]
[1765981954065,0.3608,87814.0,87813.0,0.66165]
[1765981955158,0.3608,87814.0,87813.0,0.6730414]
[1765981955562,0.00017081,87822.0,87821.0,0.6875704]
[1765981955871,0.00017081,87822.0,87821.0,0.67618]
[1765981956566,8.1e-07,87822.0,87821.0,0.67618]
[1765981956774,0.3608,87849.0,87847.0,0.011387]
[1765981957067,0.011383,87878.0,87857.0,0.6875657]
[1765981957269,0.0113808,87896.0,87874.0,0.0113835]
[1765981957473,0.0113831,87878.0,87877.0,0.67618]
[1765981957971,0.0113831,87878.0,87877.0,0.34808]
[1765981958267,0.707864,87870.0,87869.0,0.0001707]
[1765981958469,0.7078656,87858.0,87857.0,0.002]
[1765981959180,0.0113856,87858.0,87857.0,0.002]
[1765981959479,0.0115553,87866.0,87865.0,0.34808]
[1765981959774,0.0001707,87866.0,87865.0,0.67618]
[1765981959970,0.0001707,87866.0,87865.0,0.6875647]
[1765981960679,0.0001707,87866.0,87865.0,0.67618]
[1765981960868,0.0113851,87862.0,87854.0,0.0113861]
[1765981961082,0.0001707,87866.0,87859.0,0.0113855]
[1765981961273,0.0113847,87865.0,87864.0,0.67618]
[1765981961971,0.0001707,87866.0,87865.0,0.6875647]
[1765981962274,0.3609707,87866.0,87865.0,0.6875647]
[1765981962475,0.3609707,87866.0,87865.0,0.67618]
[1765981962776,0.3609707,87866.0,87865.0,0.6875647]
[1765981963168,0.0001707,87866.0,87865.0,0.6875647]
[1765981963362,0.3608,87883.0,87882.0,0.6875625]
[1765981964075,0.3608,87883.0,87882.0,0.67618]
[1765981964281,0.3608,87883.0,87882.0,0.6875625]
[1765981964476,0.0001707,87891.0,87890.0,0.6875615]
[1765981965071,0.0113818,87888.0,87881.0,0.0113825]
[1765981965272,0.0113834,87876.0,87874.0,0.0001707]
[1765981965473,0.0113834,87876.0,87850.0,0.67618]
[1765981965474,0.0113866,87851.0,87850.0,0.67618]
[1765981965871,0.3608,87851.0,87830.0,0.03018137]
[1765981966074,0.3608,87851.0,87822.0,0.06081108]
[1765981966075,0.0113892,87831.0,87810.0,0.11668856]
[1765981966273,0.43546712,87840.0,87825.0,0.67618]
[1765981966274,0.3608,87826.0,87825.0,0.67618]
[1765981966472,0.3721882,87838.0,87837.0,0.34808]
[1765981967167,0.3721882,87838.0,87812.0,0.3608]
[1765981967168,0.3608,87838.0,87812.0,0.3608]
[1765981967369,0.3608,87826.0,87825.0,0.67618]
[1765981968264,0.3608,87838.0,87837.0,0.34808]
[1765981968470,0.3608,87838.0,87837.0,0.67618]
[1765981968669,0.3609708,87846.0,87845.0,0.34808]
[1765981969466,0.3609708,87846.0,87845.0,0.67618]
[1765981969675,0.0001708,87846.0,87845.0,0.67618]
[1765981969873,8e-07,87846.0,87845.0,0.67618]
[1765981970885,0.3608008,87846.0,87845.0,0.67618]
[1765981971378,0.3608008,87846.0,87837.0,0.00017066]
[1765981971582,0.3608,87838.0,87837.0,0.00017066]
[1765981971879,0.0113899,87825.0,87817.0,0.0113908]
[1765981972180,0.011391,87817.0,87816.0,0.67618]
[1765981972368,0.0113907,87819.0,87812.0,0.72104]
[1765981972572,0.3608,87822.0,87812.0,0.72104]
[1765981973080,0.3608,87813.0,87812.0,0.34808]
[1765981973470,0.47748856,87822.0,87812.0,0.67618]
[1765981973679,0.3608,87822.0,87821.0,0.67618]
[1765981974382,0.3608,87822.0,87821.0,0.67614]
[1765981974882,0.0001708,87826.0,87825.0,0.3594699]
[1765981975073,0.0001708,87826.0,87825.0,0.34808]
[1765981975275,0.0001708,87826.0,87812.0,0.001]
[1765981975471,1.02664886,87822.0,87821.0,0.002]
[1765981975674,0.7078714,87813.0,87812.0,0.001]
[1765981975880,0.0113923,87807.0,87797.0,0.0113934]
[1765981976085,0.11668856,87810.0,87793.0,0.03018137]
[1765981976285,0.3608,87802.0,87799.0,0.0113931]
[1765981976583,0.3608,87802.0,87789.0,0.04053731]
[1765981976584,0.3608,87802.0,87788.0,0.0113947]
[1765981976787,0.3608,87792.0,87784.0,0.36092322]
[1765981976988,0.3608,87792.0,87784.0,0.00012322]
[1765981977287,0.0113943,87791.0,87784.0,0.00012322]
[1765981977483,0.0113947,87788.0,87784.0,0.00012322]
[1765981977786,0.3608,87792.0,87778.0,0.00227849]
[1765981977787,0.69648,87779.0,87778.0,0.00227849]
[1765981978083,1.05728,87779.0,87778.0,0.00227849]
[1765981978383,1.05728,87779.0,87762.0,0.011398]
[1765981978384,0.3608,87779.0,87762.0,0.011398]
[1765981978586,0.3608,87769.0,87762.0,0.011398]
[1765981978880,0.3609709,87779.0,87767.0,0.67618]
[1765981978881,0.00011434,87768.0,87767.0,0.67618]
[1765981980280,0.00011434,87768.0,87767.0,0.67918]
[1765981980784,0.00011434,87768.0,87767.0,0.68218]
[1765981980990,0.0001709,87779.0,87767.0,0.68218]
[1765981980991,9e-07,87779.0,87778.0,0.687576]
[1765981981289,0.3608,87806.0,87796.0,0.67618]
[1765981981585,0.3608,87806.0,87805.0,0.6875725]
[1765981981784,0.3608,87815.0,87814.0,0.0113913]
[1765981981986,0.3608,87815.0,87814.0,0.6875713]
[1765981982182,0.3608,87826.0,87825.0,0.0113899]
[1765981982390,0.3608,87826.0,87825.0,0.67618]
[1765981982685,0.0001708,87834.0,87810.0,0.0113918]
[1765981982882,0.0001708,87834.0,87806.0,0.0001709]
[1765981982883,0.003,87815.0,87806.0,0.0001709]
[1765981983086,0.69648,87807.0,87806.0,0.0001709]
[1765981983276,0.69648,87807.0,87782.0,0.03038741]
[1765981983277,0.20209,87799.0,87778.0,0.05407875]
[1765981983589,0.11668856,87788.0,87778.0,0.00214554]
[1765981983984,0.11668856,87788.0,87786.0,0.0113948]
[1765981984290,0.0001708,87796.0,87793.0,0.0113939]
[1765981984478,0.0001708,87796.0,87795.0,0.68481]
[1765981984682,0.33084,87783.0,87778.0,0.00014554]
[1765981984885,0.33084,87783.0,87778.0,0.00114554]
[1765981985079,0.33084,87779.0,87778.0,0.00114554]
[1765981985281,0.11668856,87788.0,87778.0,0.00114554]
[1765981985587,0.6601558,87779.0,87778.0,0.00114554]
[1765981985789,0.18628,87780.0,87750.0,0.03035646]
[1765981985987,0.18628,87780.0,87743.0,0.0114004]
[1765981985988,0.33084,87751.0,87743.0,0.0114004]
[1765981986377,0.00017091,87756.0,87733.0,0.20492]
[1765981986686,0.00014163,87755.0,87753.0,0.0113991]
[1765981986892,0.00014163,87755.0,87754.0,0.66815]
[1765981987183,0.00014163,87755.0,87736.0,0.03035646]
[1765981987184,0.00014163,87755.0,87730.0,0.26418813]
[1765981987387,0.0113996,87751.0,87739.0,0.0114009]
[1765981987590,0.00014163,87755.0,87737.0,0.0114012]
[1765981987591,0.0113999,87748.0,87737.0,0.0114012]
[1765981987789,0.36094163,87755.0,87754.0,0.66815]
[1765981987987,0.36094163,87755.0,87754.0,0.6795491]
[1765981988296,0.00014163,87755.0,87754.0,0.6795491]
[1765981988594,0.00014163,87755.0,87754.0,1.0795491]
[1765981988793,0.00014163,87755.0,87754.0,0.6795491]
[1765981989685,0.36094163,87755.0,87731.0,0.03035646]
[1765981989990,0.631691,87739.0,87724.0,0.0114029]
[1765981990187,0.99263502,87739.0,87722.0,0.5824]
[1765981990791,0.36094402,87739.0,87738.0,0.01368073]
[1765981990988,0.00014402,87739.0,87738.0,0.67376073]
[1765981991488,0.00017091,87756.0,87753.0,0.3461192]
[1765981991988,0.0113996,87751.0,87741.0,0.0114008]
[1765981992191,0.3608,87744.0,87741.0,0.0114008]
[1765981992696,0.3608,87744.0,87738.0,0.00227953]
[1765981992987,0.308,87739.0,87738.0,0.00227953]
[1765981993184,0.62029,87739.0,87738.0,0.00227953]
[1765981993691,0.0114031,87724.0,87704.0,0.0114055]
[1765981993893,0.0114012,87738.0,87702.0,0.3608]
[1765981993894,0.3608,87716.0,87702.0,0.3608]
[1765981994087,0.3608,87716.0,87714.0,0.0114043]
[1765981994284,0.19353101,87723.0,87702.0,0.3608]
[1765981994794,0.3608,87717.0,87713.0,0.0114044]
[1765981995181,0.3608,87717.0,87709.0,0.0114049]
[1765981995393,0.0114044,87713.0,87702.0,0.3608]
[1765981995582,0.3608,87708.0,87700.0,0.37708]
[1765981996191,0.00017101,87723.0,87721.0,0.0114033]
[1765981996387,0.00017101,87723.0,87717.0,0.0114038]
[1765981996592,0.62029,87715.0,87714.0,0.003]
[1765981997295,0.308,87699.0,87689.0,0.0114075]
[1765981997590,0.62029,87683.0,87674.0,0.3608]
[1765981997791,0.0114083,87684.0,87669.0,0.01141]
[1765981998088,0.19336,87685.0,87661.0,0.0114112]
[1765981998089,0.0114094,87676.0,87661.0,0.0114112]
[1765981998278,0.23383167,87680.0,87660.0,0.0114113]
[1765981998478,0.19336,87685.0,87658.0,0.00228161]
[1765981998479,0.3608,87670.0,87658.0,0.00228161]
[1765981998681,0.3608,87676.0,87673.0,0.0114096]
[1765981998893,9.071e-05,87679.0,87673.0,0.0114096]
[1765981999082,9.071e-05,87679.0,87677.0,0.0114091]
[1765981999083,0.308,87678.0,87677.0,0.0114091]
[1765981999282,9.071e-05,87679.0,87678.0,0.66008]
[1765981999496,1e-08,87687.0,87686.0,0.6714879]
[1765981999683,0.3608,87713.0,87712.0,0.0114045]
[1765982000000,0.3608,87721.0,87714.0,0.002]
[1765982000184,0.3608,87721.0,87719.0,0.0114036]
[1765982000495,5.594e-05,87720.0,87718.0,0.0114037]
[1765982001192,5.594e-05,87720.0,87710.0,0.00017101]
[1765982001193,0.308,87716.0,87710.0,0.00017101]
[1765982001493,0.3608,87712.0,87695.0,0.3608]
[1765982001685,0.78804761,87720.0,87686.0,0.006]
[1765982001686,0.308,87696.0,87686.0,0.006]
[1765982001882,5.594e-05,87695.0,87694.0,0.0114069]
[1765982002187,5.594e-05,87695.0,87687.0,0.0114078]
[1765982002493,5.594e-05,87695.0,87686.0,0.003]
[1765982002792,5.594e-05,87695.0,87694.0,0.33472]
[1765982002987,5.594e-05,87695.0,87694.0,0.66008]
[1765982003298,5.594e-05,87695.0,87692.0,0.0114071]
[1765982003790,9.11e-05,87700.0,87699.0,0.6714862]
[1765982004089,0.0114029,87725.0,87711.0,0.0114046]
[1765982004297,0.0114029,87725.0,87714.0,0.0114043]
[1765982004493,0.3608,87727.0,87720.0,0.0114034]
[1765982004792,0.308,87704.0,87686.0,0.0114078]
[1765982004991,0.00017101,87707.0,87706.0,0.6714853]
[1765982005196,0.3608,87728.0,87706.0,0.0114053]
[1765982005394,0.3608,87728.0,87727.0,0.0114026]
[1765982005696,0.3608,87736.0,87720.0,0.3608]
[1765982005697,0.36097101,87736.0,87720.0,0.3608]
[1765982005895,0.0114029,87725.0,87720.0,0.3608]
[1765982006094,0.3608,87728.0,87719.0,0.00017101]
[1765982006296,0.0114059,87702.0,87690.0,0.3608]
[1765982006597,0.19336,87700.0,87692.0,0.001]
[1765982006980,0.19336,87700.0,87679.0,8.156e-05]
[1765982007180,0.42719167,87700.0,87679.0,8.156e-05]
[1765982007386,0.42719167,87720.0,87680.0,0.23383167]
[1765982007585,0.42719167,87720.0,87679.0,8.156e-05]
[1765982007586,0.00017101,87698.0,87679.0,8.156e-05]
[1765982007987,0.00017101,87698.0,87695.0,0.0114067]
[1765982008292,0.00017101,87698.0,87679.0,8.156e-05]
[1765982008293,0.00017101,87698.0,87689.0,0.0114075]
[1765982008590,0.00017101,87698.0,87679.0,8.156e-05]
[1765982008591,0.00017101,87698.0,87694.0,0.0114069]
[1765982008793,0.00017101,87698.0,87695.0,0.0114067]
[1765982009091,0.001,87700.0,87699.0,0.66008]
[1765982009288,0.23383167,87740.0,87720.0,0.0114034]
[1765982009483,0.0114039,87717.0,87708.0,0.011405]
[1765982009685,0.0114039,87717.0,87689.0,0.001]
[1765982009686,0.19336,87720.0,87696.0,0.04988]
[1765982010090,0.0114041,87716.0,87696.0,0.04988]
[1765982010403,0.001,87700.0,87699.0,0.33489101]
[1765982010596,0.001,87700.0,87699.0,0.00017101]
[1765982010894,0.81365,87700.0,87699.0,0.00017101]
[1765982011094,0.00017101,87717.0,87700.0,0.011406]
[1765982011402,0.62029,87709.0,87699.0,0.00017101]
[1765982011692,0.8250561,87700.0,87699.0,0.00017101]
[1765982012195,0.0114053,87706.0,87699.0,0.00017101]
[1765982012398,0.00017101,87717.0,87699.0,0.00017101]
[1765982012399,0.0114048,87711.0,87702.0,0.0114057]
[1765982012589,0.00017101,87717.0,87699.0,0.00017101]
[1765982012590,0.0114055,87705.0,87699.0,0.00117101]
[1765982012788,0.011406,87701.0,87699.0,0.00117101]
[1765982012992,0.00017101,87717.0,87708.0,0.011405]
[1765982013202,0.0114049,87710.0,87701.0,0.011406]
[1765982013389,0.3608,87704.0,87703.0,0.0114057]
[1765982013585,0.3608,87714.0,87713.0,0.0114044]
[1765982014195,0.3608,87714.0,87699.0,0.00117101]
[1765982014503,0.3608,87706.0,87699.0,0.00217101]
[1765982014794,0.3608,87714.0,87713.0,0.0114044]
[1765982014995,0.3618,87714.0,87713.0,0.0114044]
[1765982015192,0.001,87714.0,87713.0,0.0114044]
[1765982015798,0.001,87714.0,87699.0,0.00117101]
[1765982015799,0.81237,87700.0,87699.0,0.00117101]
[1765982015997,0.81237,87700.0,87699.0,0.00017101]
[1765982016994,0.81237,87700.0,87699.0,0.00117101]
[1765982017396,0.0114067,87696.0,87683.0,0.3608]
[1765982017604,0.18768,87700.0,87693.0,0.011407]
[1765982017605,0.2000862,87700.0,87693.0,0.011407]
[1765982017801,0.18868,87700.0,87690.0,0.0114074]
[1765982018100,0.3608,87694.0,87679.0,0.03043802]
[1765982018306,0.3608,87696.0,87692.0,0.0114071]
[1765982018698,0.3608,87696.0,87683.0,0.3608]
[1765982019004,0.3608,87696.0,87679.0,8.156e-05]
[1765982019005,0.3608,87687.0,87679.0,8.156e-05]
[1765982019299,0.3608,87696.0,87679.0,8.156e-05]
[1765982019300,0.3608,87696.0,87693.0,0.0114069]
[1765982019499,0.3608,87696.0,87684.0,0.0114082]
[1765982019500,0.00017101,87703.0,87691.0,0.3608]
[1765982019799,0.11715294,87701.0,87699.0,0.0114062]
[1765982019995,0.00017101,87703.0,87702.0,0.0114058]
[1765982020397,0.00017101,87703.0,87702.0,0.9897658]
[1765982020598,0.19336,87742.0,87714.0,0.0114042]
[1765982020805,0.11715294,87750.0,87749.0,0.61756]
[1765982021106,0.3608,87754.0,87743.0,0.0114005]
[1765982021302,0.11715294,87750.0,87748.0,0.0113998]
[1765982021501,0.0113988,87757.0,87746.0,0.0114]
[1765982021802,0.00017101,87760.0,87749.0,0.3608]
[1765982021996,0.00017101,87760.0,87759.0,0.3158]
[1765982022798,0.00017101,87760.0,87758.0,0.0113986]
[1765982023109,0.3608,87772.0,87757.0,0.1108]
[1765982023405,0.3608,87772.0,87771.0,0.3158]
[1765982023604,0.3608,87772.0,87765.0,0.0113976]
[1765982023801,0.3608,87772.0,87743.0,0.3722004]
[1765982023802,0.3608,87772.0,87761.0,0.0113981]
[1765982024000,0.3608,87772.0,87751.0,0.04078934]
[1765982024001,0.0113983,87761.0,87758.0,0.00017091]